[Event "Early-Titled-Tuesday-Blitz-May-28-2024"]
[Site "Chess.com"]
[Date "2024.05.28"]
[Round "9"]
[White "remyrushbrooke"]
[Black "Naruto75_3"]
[Result "0-1"]
[WhiteElo "2279"]
[BlackElo "2410"]
[TimeControl "180+1"]
[EndTime "9:46:06 PDT"]
[Termination "Naruto75_3 won by resignation"]

1. d4 {[%clk 0:03:00.9]} 1... d5 {[%clk 0:02:58.8]} 2. Nc3 {[%clk 0:03:01]} 2...
c5 {[%clk 0:02:55.6]} 3. e4 {[%clk 0:02:58]} 3... dxe4 {[%clk 0:02:52.7]} 4. d5
{[%clk 0:02:58.3]} 4... Nf6 {[%clk 0:02:51.7]} 5. f3 {[%clk 0:02:58.6]} 5...
exf3 {[%clk 0:02:49.9]} 6. Nxf3 {[%clk 0:02:58.7]} 6... a6 {[%clk 0:02:47.3]} 7.
a4 {[%clk 0:02:58.1]} 7... g6 {[%clk 0:02:46.3]} 8. Bc4 {[%clk 0:02:53.5]} 8...
Bg7 {[%clk 0:02:44.6]} 9. O-O {[%clk 0:02:54]} 9... Nbd7 {[%clk 0:02:43.5]} 10.
a5 {[%clk 0:02:52.8]} 10... O-O {[%clk 0:02:43]} 11. Bf4 {[%clk 0:02:48.4]}
11... b5 {[%clk 0:02:42.4]} 12. axb6 {[%clk 0:02:47.8]} 12... Nxb6 {[%clk
0:02:42.4]} 13. Ba2 {[%clk 0:02:40.1]} 13... Bb7 {[%clk 0:02:41.8]} 14. d6
{[%clk 0:02:34.8]} 14... e6 {[%clk 0:02:34.8]} 15. Be3 {[%clk 0:02:23.6]} 15...
Rc8 {[%clk 0:02:31.9]} 16. Qd2 {[%clk 0:02:12.9]} 16... Nbd5 {[%clk 0:02:26.7]}
17. Nxd5 {[%clk 0:02:12.5]} 17... Nxd5 {[%clk 0:02:22.6]} 18. Bg5 {[%clk
0:02:06.8]} 18... f6 {[%clk 0:02:12.6]} 19. Bf4 {[%clk 0:02:03.6]} 19... Kh8
{[%clk 0:02:08.8]} 20. Rfe1 {[%clk 0:01:53]} 20... Nxf4 {[%clk 0:01:51.6]} 21.
Qxf4 {[%clk 0:01:53.9]} 21... e5 {[%clk 0:01:50.7]} 22. Qg3 {[%clk 0:01:25.8]}
22... Qxd6 {[%clk 0:01:32.9]} 23. Nh4 {[%clk 0:01:25.4]} 23... f5 {[%clk
0:01:31.5]} 24. Rad1 {[%clk 0:01:21.9]} 24... Qf6 {[%clk 0:01:22.5]} 25. Rxe5
{[%clk 0:01:10.5]} 25... Rcd8 {[%clk 0:01:17.9]} 26. Rde1 {[%clk 0:00:51.7]}
26... Be4 {[%clk 0:01:11]} 27. Re6 {[%clk 0:00:34.1]} 27... Qd4+ {[%clk
0:01:07]} 28. Kh1 {[%clk 0:00:34.2]} 28... Bf6 {[%clk 0:01:04.8]} 29. Nxg6+
{[%clk 0:00:20.6]} 29... hxg6 {[%clk 0:01:02.4]} 30. Qxg6 {[%clk 0:00:20.1]}
30... Qd2 {[%clk 0:00:58.3]} 31. Qh6+ {[%clk 0:00:19.4]} 31... Qxh6 {[%clk
0:00:54.9]} 0-1

[Event "Early-Titled-Tuesday-Blitz-May-28-2024"]
[Site "Chess.com"]
[Date "2024.05.28"]
[Round "9"]
[White "scarabee43"]
[Black "MITerryble"]
[Result "0-1"]
[WhiteElo "2835"]
[BlackElo "3022"]
[TimeControl "180+1"]
[EndTime "9:46:11 PDT"]
[Termination "MITerryble won by resignation"]

1. Nf3 {[%clk 0:03:00.9]} 1... d5 {[%clk 0:02:59.7]} 2. e3 {[%clk 0:02:59.8]}
2... Nf6 {[%clk 0:03:00.1]} 3. b3 {[%clk 0:03:00]} 3... Bg4 {[%clk 0:02:56.8]}
4. Bb2 {[%clk 0:02:58.9]} 4... Nbd7 {[%clk 0:02:57.2]} 5. Be2 {[%clk 0:02:59.3]}
5... c6 {[%clk 0:02:57.5]} 6. O-O {[%clk 0:02:59]} 6... e6 {[%clk 0:02:58.1]} 7.
d3 {[%clk 0:02:57.6]} 7... Bd6 {[%clk 0:02:58.3]} 8. Nbd2 {[%clk 0:02:58.3]}
8... O-O {[%clk 0:02:58.6]} 9. c4 {[%clk 0:02:52.9]} 9... e5 {[%clk 0:02:58.2]}
10. Qc2 {[%clk 0:02:49.9]} 10... Qe7 {[%clk 0:02:57.9]} 11. e4 {[%clk
0:02:49.2]} 11... dxe4 {[%clk 0:02:54.1]} 12. Nxe4 {[%clk 0:02:47.8]} 12... Nxe4
{[%clk 0:02:54.4]} 13. dxe4 {[%clk 0:02:48.5]} 13... Ba3 {[%clk 0:02:46.3]} 14.
Bc3 {[%clk 0:02:45.8]} 14... Rad8 {[%clk 0:02:40.6]} 15. Rad1 {[%clk 0:02:44]}
15... f6 {[%clk 0:02:35.5]} 16. Rd2 {[%clk 0:02:38.5]} 16... Bb4 {[%clk
0:02:31.3]} 17. Rfd1 {[%clk 0:02:38.8]} 17... Bxc3 {[%clk 0:02:31.6]} 18. Qxc3
{[%clk 0:02:39.3]} 18... Nc5 {[%clk 0:02:26.4]} 19. Qe3 {[%clk 0:02:35.4]} 19...
b6 {[%clk 0:02:20.6]} 20. Ne1 {[%clk 0:02:09.9]} 20... Bc8 {[%clk 0:02:12.8]}
21. Nc2 {[%clk 0:02:06.9]} 21... Rxd2 {[%clk 0:02:05.8]} 22. Rxd2 {[%clk
0:02:06.5]} 22... Rd8 {[%clk 0:02:04.4]} 23. f3 {[%clk 0:02:01.1]} 23... Ne6
{[%clk 0:02:01.8]} 24. Kf1 {[%clk 0:01:53.5]} 24... Kf7 {[%clk 0:02:01]} 25. Ke1
{[%clk 0:01:51.9]} 25... h5 {[%clk 0:01:53.2]} 26. g3 {[%clk 0:01:45.6]} 26...
g5 {[%clk 0:01:50.8]} 27. h4 {[%clk 0:01:30.7]} 27... gxh4 {[%clk 0:01:48.2]}
28. f4 {[%clk 0:01:31.3]} 28... Rxd2 {[%clk 0:01:28.3]} 29. Bxh5+ {[%clk
0:01:26.1]} 29... Kg7 {[%clk 0:01:28.4]} 30. Kxd2 {[%clk 0:00:55.8]} 30... exf4
{[%clk 0:01:28.2]} 31. gxf4 {[%clk 0:00:55.5]} 31... Qd6+ {[%clk 0:01:28.4]} 32.
Kc3 {[%clk 0:00:47.7]} 32... Qxf4 {[%clk 0:01:27.2]} 33. Qg1+ {[%clk 0:00:47.6]}
33... Qg5 {[%clk 0:01:26.1]} 34. Qd1 {[%clk 0:00:32.4]} 34... Qe5+ {[%clk
0:01:25.8]} 35. Kd2 {[%clk 0:00:31.8]} 35... Qxe4 {[%clk 0:01:18.2]} 36. Qg4+
{[%clk 0:00:28.2]} 36... Qxg4 {[%clk 0:01:16.2]} 37. Bxg4 {[%clk 0:00:29]} 37...
Kg6 {[%clk 0:01:10]} 38. Ne3 {[%clk 0:00:28.2]} 38... Kg5 {[%clk 0:01:10.5]} 39.
Ke1 {[%clk 0:00:27.4]} 39... Bd7 {[%clk 0:01:10.4]} 40. Kf2 {[%clk 0:00:26.4]}
40... Nc5 {[%clk 0:01:10.8]} 41. Bf3 {[%clk 0:00:26.4]} 41... Nd3+ {[%clk
0:01:08.2]} 42. Ke2 {[%clk 0:00:27]} 42... Nc1+ {[%clk 0:01:07.6]} 43. Kd2
{[%clk 0:00:26.3]} 43... Nxa2 {[%clk 0:01:08.5]} 44. Nc2 {[%clk 0:00:20.3]}
44... c5 {[%clk 0:01:08.5]} 45. Ne3 {[%clk 0:00:19.9]} 45... Nb4 {[%clk
0:01:08.9]} 46. Kc3 {[%clk 0:00:20.1]} 46... Kf4 {[%clk 0:01:08.4]} 0-1

[Event "Early-Titled-Tuesday-Blitz-May-28-2024"]
[Site "Chess.com"]
[Date "2024.05.28"]
[Round "9"]
[White "Nf3c5"]
[Black "NikFil2013"]
[Result "1-0"]
[WhiteElo "2571"]
[BlackElo "2464"]
[TimeControl "180+1"]
[EndTime "9:46:11 PDT"]
[Termination "Nf3c5 won on time"]

1. e4 {[%clk 0:03:00.9]} 1... c5 {[%clk 0:03:00]} 2. Nc3 {[%clk 0:02:57]} 2...
d6 {[%clk 0:03:00]} 3. d4 {[%clk 0:02:50.7]} 3... cxd4 {[%clk 0:02:58.3]} 4.
Qxd4 {[%clk 0:02:51.2]} 4... Nc6 {[%clk 0:02:58.1]} 5. Qd2 {[%clk 0:02:51.6]}
5... Nf6 {[%clk 0:02:57]} 6. b3 {[%clk 0:02:51]} 6... e6 {[%clk 0:02:51.6]} 7.
Bb2 {[%clk 0:02:50.7]} 7... Be7 {[%clk 0:02:49.2]} 8. O-O-O {[%clk 0:02:49.3]}
8... O-O {[%clk 0:02:46.7]} 9. f4 {[%clk 0:02:49.9]} 9... a6 {[%clk 0:02:42.9]}
10. Nf3 {[%clk 0:02:50]} 10... Qc7 {[%clk 0:02:36.6]} 11. g4 {[%clk 0:02:49.4]}
11... b5 {[%clk 0:02:35.8]} 12. g5 {[%clk 0:02:49.5]} 12... Nh5 {[%clk
0:02:27.2]} 13. Kb1 {[%clk 0:02:21.9]} 13... Bb7 {[%clk 0:02:23]} 14. Rg1 {[%clk
0:02:15.5]} 14... Rfd8 {[%clk 0:02:12.5]} 15. f5 {[%clk 0:02:13.5]} 15... exf5
{[%clk 0:01:50.5]} 16. Nd5 {[%clk 0:02:07.6]} 16... Qd7 {[%clk 0:01:36]} 17.
Nf6+ {[%clk 0:01:35.7]} 17... Bxf6 {[%clk 0:01:14.6]} 18. gxf6 {[%clk
0:01:33.6]} 18... Qe6 {[%clk 0:00:04.4]} 19. Rxg7+ {[%clk 0:01:23.9]} 19... Nxg7
{[%clk 0:00:04]} 20. Qg5 {[%clk 0:01:21.5]} 20... Kf8 {[%clk 0:00:02]} 21. Qxg7+
{[%clk 0:01:04.5]} 21... Ke8 {[%clk 0:00:02.3]} 22. exf5 {[%clk 0:01:04.9]}
22... Qxf5 {[%clk 0:00:01]} 23. Bh3 {[%clk 0:00:35.4]} 1-0

[Event "Early-Titled-Tuesday-Blitz-May-28-2024"]
[Site "Chess.com"]
[Date "2024.05.28"]
[Round "9"]
[White "DanielNaroditsky"]
[Black "ckgchess"]
[Result "1-0"]
[WhiteElo "3065"]
[BlackElo "2888"]
[TimeControl "180+1"]
[EndTime "9:46:13 PDT"]
[Termination "DanielNaroditsky won on time"]

1. e4 {[%clk 0:03:00.9]} 1... c5 {[%clk 0:02:59.7]} 2. c3 {[%clk 0:03:01.1]}
2... Nf6 {[%clk 0:02:43.3]} 3. e5 {[%clk 0:03:01.4]} 3... Nd5 {[%clk 0:02:44]}
4. Nf3 {[%clk 0:03:02.3]} 4... d6 {[%clk 0:02:43.4]} 5. Bc4 {[%clk 0:03:02.6]}
5... Nb6 {[%clk 0:02:39.9]} 6. e6 {[%clk 0:03:02.9]} 6... Nxc4 {[%clk
0:02:17.5]} 7. Qa4+ {[%clk 0:03:02.3]} 7... Nc6 {[%clk 0:02:10]} 8. exf7+ {[%clk
0:03:00.6]} 8... Kxf7 {[%clk 0:02:09]} 9. Qxc4+ {[%clk 0:03:01.5]} 9... e6
{[%clk 0:02:08.3]} 10. O-O {[%clk 0:02:57.6]} 10... Qf6 {[%clk 0:01:52.1]} 11.
d4 {[%clk 0:02:57.6]} 11... d5 {[%clk 0:01:47.1]} 12. Qe2 {[%clk 0:02:46.7]}
12... cxd4 {[%clk 0:01:47.2]} 13. Bg5 {[%clk 0:02:44.1]} 13... Qf5 {[%clk
0:01:39.9]} 14. cxd4 {[%clk 0:02:43.1]} 14... Bd6 {[%clk 0:01:39.1]} 15. Bh4
{[%clk 0:02:37.1]} 15... Rf8 {[%clk 0:01:30.3]} 16. Nc3 {[%clk 0:02:35]} 16...
Kg8 {[%clk 0:01:26.4]} 17. Bg3 {[%clk 0:02:35.5]} 17... Bxg3 {[%clk 0:01:24.4]}
18. fxg3 {[%clk 0:02:35.5]} 18... Qg4 {[%clk 0:01:04.8]} 19. Qe3 {[%clk
0:02:28.1]} 19... Bd7 {[%clk 0:01:04.1]} 20. Ne2 {[%clk 0:02:27.3]} 20... Rf6
{[%clk 0:00:57.9]} 21. Nf4 {[%clk 0:02:26]} 21... Raf8 {[%clk 0:00:55.3]} 22.
Rae1 {[%clk 0:02:23.6]} 22... h6 {[%clk 0:00:49.1]} 23. Nd3 {[%clk 0:02:16.2]}
23... b6 {[%clk 0:00:38.7]} 24. b4 {[%clk 0:02:11.1]} 24... Be8 {[%clk
0:00:29.9]} 25. a3 {[%clk 0:02:11.4]} 25... Bg6 {[%clk 0:00:25]} 26. Nf2 {[%clk
0:02:04.6]} 26... Qf5 {[%clk 0:00:20.7]} 27. Rc1 {[%clk 0:02:05.2]} 27... Ne7
{[%clk 0:00:16.8]} 28. Rc7 {[%clk 0:02:04.9]} 28... Nc8 {[%clk 0:00:13.2]} 29.
g4 {[%clk 0:01:48.8]} 29... Qf4 {[%clk 0:00:11.8]} 30. Qxf4 {[%clk 0:01:48.5]}
30... Rxf4 {[%clk 0:00:12.7]} 31. Ne5 {[%clk 0:01:49.4]} 31... Be4 {[%clk
0:00:11]} 32. g3 {[%clk 0:01:38.7]} 32... R4f6 {[%clk 0:00:11.2]} 33. Nd7 {[%clk
0:01:39.3]} 33... R6f7 {[%clk 0:00:11.8]} 34. Nxf8 {[%clk 0:01:39.1]} 34... Rxc7
{[%clk 0:00:11.7]} 35. Nxe6 {[%clk 0:01:37.6]} 35... Rc3 {[%clk 0:00:12.2]} 36.
Nxe4 {[%clk 0:01:34.5]} 36... dxe4 {[%clk 0:00:13.1]} 37. Rf8+ {[%clk
0:01:33.7]} 37... Kh7 {[%clk 0:00:13.3]} 38. Rd8 {[%clk 0:01:27.2]} 38... e3
{[%clk 0:00:13.5]} 39. Kf1 {[%clk 0:01:27.2]} 39... Ne7 {[%clk 0:00:12.1]} 40.
Ke2 {[%clk 0:01:18.8]} 40... Rxa3 {[%clk 0:00:09.3]} 41. d5 {[%clk 0:01:17.4]}
41... Ng6 {[%clk 0:00:10]} 42. d6 {[%clk 0:01:13.8]} 42... Ne5 {[%clk
0:00:10.4]} 43. Nf8+ {[%clk 0:01:14.2]} 1-0

[Event "Early-Titled-Tuesday-Blitz-May-28-2024"]
[Site "Chess.com"]
[Date "2024.05.28"]
[Round "9"]
[White "janhelmer03"]
[Black "SoyuzTM4"]
[Result "1-0"]
[WhiteElo "2396"]
[BlackElo "2228"]
[TimeControl "180+1"]
[EndTime "9:46:16 PDT"]
[Termination "janhelmer03 won by checkmate"]

1. Nf3 {[%clk 0:02:58.3]} 1... Nf6 {[%clk 0:02:59.2]} 2. c4 {[%clk 0:02:58.4]}
2... g6 {[%clk 0:02:55.2]} 3. Nc3 {[%clk 0:02:55]} 3... Bg7 {[%clk 0:02:54.1]}
4. e4 {[%clk 0:02:55.6]} 4... d6 {[%clk 0:02:53.9]} 5. d4 {[%clk 0:02:55.7]}
5... O-O {[%clk 0:02:53.4]} 6. Be2 {[%clk 0:02:50.7]} 6... c5 {[%clk 0:02:52.9]}
7. O-O {[%clk 0:02:50.2]} 7... cxd4 {[%clk 0:02:49.2]} 8. Nxd4 {[%clk 0:02:46]}
8... Nc6 {[%clk 0:02:48.7]} 9. Be3 {[%clk 0:02:29]} 9... Bd7 {[%clk 0:02:42.3]}
10. Nb3 {[%clk 0:02:18.3]} 10... Rc8 {[%clk 0:02:38.1]} 11. f3 {[%clk
0:01:51.9]} 11... a6 {[%clk 0:02:32.4]} 12. Nd2 {[%clk 0:01:47.6]} 12... Ne5
{[%clk 0:02:26.3]} 13. Rc1 {[%clk 0:01:36.9]} 13... Be6 {[%clk 0:02:23.5]} 14.
b3 {[%clk 0:01:36.5]} 14... Qa5 {[%clk 0:02:15.7]} 15. a4 {[%clk 0:01:27.6]}
15... Ned7 {[%clk 0:02:00.3]} 16. Nd5 {[%clk 0:01:22.8]} 16... Bxd5 {[%clk
0:01:52.1]} 17. exd5 {[%clk 0:01:19.6]} 17... e5 {[%clk 0:01:14.2]} 18. Ne4
{[%clk 0:01:09]} 18... Nxe4 {[%clk 0:01:08.9]} 19. fxe4 {[%clk 0:01:09.9]} 19...
f5 {[%clk 0:01:00.9]} 20. exf5 {[%clk 0:01:10.1]} 20... gxf5 {[%clk 0:00:59.7]}
21. Bd3 {[%clk 0:00:44.2]} 21... e4 {[%clk 0:00:59]} 22. Bb1 {[%clk 0:00:31]}
22... Qb4 {[%clk 0:00:43.4]} 23. g4 {[%clk 0:00:26.4]} 23... fxg4 {[%clk
0:00:37.9]} 24. Qxg4 {[%clk 0:00:24.5]} 24... Ne5 {[%clk 0:00:20.8]} 25. Qxe4
{[%clk 0:00:21.3]} 25... Qxb3 {[%clk 0:00:19.9]} 26. Qxh7# {[%clk 0:00:21.2]}
1-0

[Event "Early-Titled-Tuesday-Blitz-May-28-2024"]
[Site "Chess.com"]
[Date "2024.05.28"]
[Round "9"]
[White "baki83"]
[Black "lachesisQ"]
[Result "1-0"]
[WhiteElo "2928"]
[BlackElo "3080"]
[TimeControl "180+1"]
[EndTime "9:46:18 PDT"]
[Termination "baki83 won by checkmate"]

1. e4 {[%clk 0:03:00.9]} 1... c5 {[%clk 0:02:59.6]} 2. Nf3 {[%clk 0:03:01.2]}
2... d6 {[%clk 0:03:00]} 3. Bb5+ {[%clk 0:03:01.4]} 3... Bd7 {[%clk 0:02:59.8]}
4. Bxd7+ {[%clk 0:03:01]} 4... Qxd7 {[%clk 0:03:00.7]} 5. O-O {[%clk 0:03:01]}
5... Nc6 {[%clk 0:02:57.8]} 6. d4 {[%clk 0:03:00]} 6... cxd4 {[%clk 0:02:56.6]}
7. Nxd4 {[%clk 0:03:00.3]} 7... Nf6 {[%clk 0:02:57.1]} 8. Nc3 {[%clk 0:03:00.2]}
8... g6 {[%clk 0:02:54.5]} 9. Re1 {[%clk 0:02:57.5]} 9... Bg7 {[%clk 0:02:54.3]}
10. Nf3 {[%clk 0:02:57.7]} 10... O-O {[%clk 0:02:53.1]} 11. h3 {[%clk
0:02:55.6]} 11... Rac8 {[%clk 0:02:52.4]} 12. Bg5 {[%clk 0:02:49.2]} 12... Rfd8
{[%clk 0:02:49.7]} 13. Qd2 {[%clk 0:02:47.2]} 13... Na5 {[%clk 0:02:39.1]} 14.
Rad1 {[%clk 0:02:36]} 14... Nc4 {[%clk 0:02:38]} 15. Qc1 {[%clk 0:02:36.6]}
15... Qe8 {[%clk 0:02:29.2]} 16. b3 {[%clk 0:02:19.6]} 16... Nb6 {[%clk
0:02:28.9]} 17. Nd5 {[%clk 0:01:59.9]} 17... Nbxd5 {[%clk 0:02:28.8]} 18. exd5
{[%clk 0:01:59.9]} 18... b5 {[%clk 0:02:29.7]} 19. Re2 {[%clk 0:01:43.2]} 19...
Qd7 {[%clk 0:02:25.1]} 20. c4 {[%clk 0:01:36.5]} 20... bxc4 {[%clk 0:02:13.2]}
21. bxc4 {[%clk 0:01:37.4]} 21... Rc5 {[%clk 0:01:53.9]} 22. Be3 {[%clk
0:01:07.9]} 22... Rc7 {[%clk 0:01:53.6]} 23. Rc2 {[%clk 0:00:56.7]} 23... Rdc8
{[%clk 0:01:52.7]} 24. Bd4 {[%clk 0:00:55.3]} 24... Qa4 {[%clk 0:01:47.9]} 25.
c5 {[%clk 0:00:43.3]} 25... dxc5 {[%clk 0:01:38.3]} 26. Be5 {[%clk 0:00:32.9]}
26... Rd7 {[%clk 0:01:38.2]} 27. Rc4 {[%clk 0:00:33.4]} 27... Qa5 {[%clk
0:01:23.9]} 28. Qa1 {[%clk 0:00:13]} 28... Rcd8 {[%clk 0:01:19.6]} 29. d6 {[%clk
0:00:13.1]} 29... Ne8 {[%clk 0:01:11.3]} 30. Bxg7 {[%clk 0:00:08.4]} 30... Nxg7
{[%clk 0:01:12.2]} 31. Re4 {[%clk 0:00:05]} 31... Nf5 {[%clk 0:01:07.2]} 32.
Rde1 {[%clk 0:00:04.2]} 32... Rxd6 {[%clk 0:01:03.4]} 33. g4 {[%clk 0:00:04.6]}
33... Nd4 {[%clk 0:01:03]} 34. Nxd4 {[%clk 0:00:05]} 34... cxd4 {[%clk
0:01:03.3]} 35. Rxe7 {[%clk 0:00:05.8]} 35... d3 {[%clk 0:01:01.4]} 36. Re8+
{[%clk 0:00:05.6]} 36... Rxe8 {[%clk 0:00:49.2]} 37. Rxe8# {[%clk 0:00:06.5]}
1-0

[Event "Early-Titled-Tuesday-Blitz-May-28-2024"]
[Site "Chess.com"]
[Date "2024.05.28"]
[Round "9"]
[White "AnaKuchava"]
[Black "frenchpin"]
[Result "0-1"]
[WhiteElo "2201"]
[BlackElo "2393"]
[TimeControl "180+1"]
[EndTime "9:46:18 PDT"]
[Termination "frenchpin won by resignation"]

1. d4 {[%clk 0:03:00.9]} 1... Nf6 {[%clk 0:02:56.6]} 2. Nf3 {[%clk 0:03:00.5]}
2... b6 {[%clk 0:02:53.3]} 3. c4 {[%clk 0:03:00.3]} 3... Bb7 {[%clk 0:02:50.1]}
4. a3 {[%clk 0:02:55.6]} 4... e6 {[%clk 0:02:40.6]} 5. Nc3 {[%clk 0:02:54.3]}
5... Be7 {[%clk 0:02:34.8]} 6. d5 {[%clk 0:02:41.7]} 6... b5 {[%clk 0:01:57.1]}
7. dxe6 {[%clk 0:02:37.7]} 7... b4 {[%clk 0:01:46.8]} 8. exf7+ {[%clk
0:02:34.2]} 8... Kxf7 {[%clk 0:01:45.9]} 9. axb4 {[%clk 0:02:26.6]} 9... Bxb4
{[%clk 0:01:44.5]} 10. Qb3 {[%clk 0:02:09.9]} 10... Nc6 {[%clk 0:01:42.8]} 11.
Ng5+ {[%clk 0:01:35.9]} 11... Kf8 {[%clk 0:01:33.8]} 12. c5 {[%clk 0:01:35.1]}
12... Qe7 {[%clk 0:01:21.2]} 13. Bf4 {[%clk 0:01:31.5]} 13... Nd4 {[%clk
0:01:01.7]} 14. Qd1 {[%clk 0:01:04.7]} 14... Qxc5 {[%clk 0:01:00.2]} 15. e3
{[%clk 0:00:48.9]} 15... Bxc3+ {[%clk 0:00:56.6]} 16. bxc3 {[%clk 0:00:49.8]}
16... Qxc3+ {[%clk 0:00:56.6]} 17. Qd2 {[%clk 0:00:38.9]} 17... Qxa1+ {[%clk
0:00:56.4]} 18. Qd1 {[%clk 0:00:39.6]} 18... Qxd1+ {[%clk 0:00:45.7]} 19. Kxd1
{[%clk 0:00:39]} 19... Ne6 {[%clk 0:00:46.3]} 20. Nxe6+ {[%clk 0:00:38]} 20...
dxe6 {[%clk 0:00:47.2]} 21. Bc4 {[%clk 0:00:38]} 21... Ke7 {[%clk 0:00:45.9]}
22. Bb3 {[%clk 0:00:33.6]} 22... Bd5 {[%clk 0:00:45.3]} 23. Bc2 {[%clk
0:00:32.4]} 23... Be4 {[%clk 0:00:43.8]} 24. Bxe4 {[%clk 0:00:30.5]} 24... Nxe4
{[%clk 0:00:43.7]} 25. Ke2 {[%clk 0:00:31.4]} 25... Rhd8 {[%clk 0:00:41.6]} 26.
Bxc7 {[%clk 0:00:30.8]} 26... Rd2+ {[%clk 0:00:40.6]} 27. Kf3 {[%clk 0:00:31.5]}
27... Nc5 {[%clk 0:00:37.2]} 28. Rc1 {[%clk 0:00:29.4]} 28... Rf8+ {[%clk
0:00:35.7]} 29. Kg3 {[%clk 0:00:28.7]} 29... Ne4+ {[%clk 0:00:35.4]} 30. Kh3
{[%clk 0:00:28.3]} 30... Rfxf2 {[%clk 0:00:33]} 31. Be5 {[%clk 0:00:24.3]} 31...
Ng5+ {[%clk 0:00:28.9]} 32. Kg3 {[%clk 0:00:24.3]} 32... Rxg2+ {[%clk
0:00:28.1]} 0-1

[Event "Early-Titled-Tuesday-Blitz-May-28-2024"]
[Site "Chess.com"]
[Date "2024.05.28"]
[Round "9"]
[White "yobdc"]
[Black "ManMish2"]
[Result "1-0"]
[WhiteElo "2541"]
[BlackElo "2675"]
[TimeControl "180+1"]
[EndTime "9:46:21 PDT"]
[Termination "yobdc won by resignation"]

1. e4 {[%clk 0:03:00.9]} 1... e5 {[%clk 0:02:58.3]} 2. Nf3 {[%clk 0:03:00.4]}
2... Nc6 {[%clk 0:02:58.3]} 3. Bc4 {[%clk 0:03:00.8]} 3... Nf6 {[%clk
0:02:58.3]} 4. d3 {[%clk 0:03:00.9]} 4... Bc5 {[%clk 0:02:58.1]} 5. c3 {[%clk
0:03:00.2]} 5... d6 {[%clk 0:02:58.2]} 6. Bb3 {[%clk 0:03:00.1]} 6... a6 {[%clk
0:02:58]} 7. Nbd2 {[%clk 0:02:59.7]} 7... O-O {[%clk 0:02:53.7]} 8. h3 {[%clk
0:02:59.2]} 8... Be6 {[%clk 0:02:49.2]} 9. Bxe6 {[%clk 0:02:41.1]} 9... fxe6
{[%clk 0:02:48.3]} 10. b4 {[%clk 0:02:41.3]} 10... Ba7 {[%clk 0:02:45.6]} 11.
O-O {[%clk 0:02:41]} 11... Qe8 {[%clk 0:02:41.8]} 12. a4 {[%clk 0:02:33.7]}
12... Nh5 {[%clk 0:02:32.2]} 13. Nc4 {[%clk 0:02:25.8]} 13... Ng3 {[%clk
0:02:07.8]} 14. Re1 {[%clk 0:02:23.4]} 14... Qh5 {[%clk 0:02:07.3]} 15. Be3
{[%clk 0:02:11.9]} 15... d5 {[%clk 0:01:58.7]} 16. Bxa7 {[%clk 0:01:26.8]} 16...
Rxa7 {[%clk 0:01:26]} 17. Ncd2 {[%clk 0:01:26.1]} 17... d4 {[%clk 0:01:18.1]}
18. cxd4 {[%clk 0:01:09.4]} 18... Nxb4 {[%clk 0:01:07.3]} 19. Qb3 {[%clk
0:00:55]} 19... Qg6 {[%clk 0:01:07]} 20. fxg3 {[%clk 0:00:51.3]} 20... Nc6
{[%clk 0:01:04.4]} 21. Nxe5 {[%clk 0:00:39.3]} 21... Nxe5 {[%clk 0:01:02]} 22.
dxe5 {[%clk 0:00:40]} 22... Qxg3 {[%clk 0:01:01.2]} 23. Qxe6+ {[%clk 0:00:39.5]}
23... Kh8 {[%clk 0:01:01.5]} 24. Rf1 {[%clk 0:00:24.9]} 24... Raa8 {[%clk
0:01:01]} 25. Rxf8+ {[%clk 0:00:21.4]} 25... Rxf8 {[%clk 0:01:00.7]} 26. Rf1
{[%clk 0:00:21.2]} 26... Rg8 {[%clk 0:00:59.1]} 27. Nf3 {[%clk 0:00:20.4]} 27...
h6 {[%clk 0:00:58.7]} 28. Qg4 {[%clk 0:00:19.6]} 28... Qxg4 {[%clk 0:00:57.5]}
29. hxg4 {[%clk 0:00:20.5]} 29... Rd8 {[%clk 0:00:58]} 30. d4 {[%clk 0:00:20.4]}
30... Kg8 {[%clk 0:00:58.7]} 31. e6 {[%clk 0:00:20.8]} 31... Rd6 {[%clk
0:00:57]} 32. d5 {[%clk 0:00:21.1]} 32... c6 {[%clk 0:00:56]} 33. Rd1 {[%clk
0:00:21.1]} 33... Kf8 {[%clk 0:00:54.9]} 34. Ne5 {[%clk 0:00:21.2]} 34... Ke7
{[%clk 0:00:53.9]} 35. a5 {[%clk 0:00:19.6]} 35... cxd5 {[%clk 0:00:51.9]} 36.
exd5 {[%clk 0:00:19.5]} 36... Kf6 {[%clk 0:00:50.5]} 37. Nc4 {[%clk 0:00:19.6]}
37... Rd8 {[%clk 0:00:50.4]} 38. Rf1+ {[%clk 0:00:20]} 38... Kg6 {[%clk
0:00:48.6]} 39. d6 {[%clk 0:00:19.9]} 1-0

[Event "Early-Titled-Tuesday-Blitz-May-28-2024"]
[Site "Chess.com"]
[Date "2024.05.28"]
[Round "9"]
[White "Fore_Man"]
[Black "AustinThomas12345"]
[Result "1-0"]
[WhiteElo "2220"]
[BlackElo "2507"]
[TimeControl "180+1"]
[EndTime "9:46:25 PDT"]
[Termination "Fore_Man won by resignation"]

1. Nf3 {[%clk 0:02:56.2]} 1... d5 {[%clk 0:02:57.6]} 2. c4 {[%clk 0:02:51.5]}
2... c6 {[%clk 0:02:56.4]} 3. d4 {[%clk 0:02:51.1]} 3... Nf6 {[%clk 0:02:55.9]}
4. e3 {[%clk 0:02:51.6]} 4... e6 {[%clk 0:02:54.9]} 5. Qc2 {[%clk 0:02:33.7]}
5... Bd6 {[%clk 0:02:50.5]} 6. b3 {[%clk 0:02:32.1]} 6... Nbd7 {[%clk
0:02:43.1]} 7. Nc3 {[%clk 0:02:32.5]} 7... O-O {[%clk 0:02:36]} 8. Bd3 {[%clk
0:02:32.8]} 8... e5 {[%clk 0:02:34.5]} 9. cxd5 {[%clk 0:02:29.6]} 9... cxd5
{[%clk 0:02:31.9]} 10. dxe5 {[%clk 0:02:27.9]} 10... Nxe5 {[%clk 0:02:32.8]} 11.
Nxe5 {[%clk 0:02:27.3]} 11... Bxe5 {[%clk 0:02:33.7]} 12. O-O {[%clk 0:01:55.8]}
12... Bxh2+ {[%clk 0:02:29.6]} 13. Kxh2 {[%clk 0:01:56.7]} 13... Ng4+ {[%clk
0:02:30.1]} 14. Kg3 {[%clk 0:01:54.5]} 14... Qg5 {[%clk 0:01:29.4]} 15. f4
{[%clk 0:01:53.8]} 15... Qh5 {[%clk 0:01:28.8]} 16. Bd2 {[%clk 0:01:27.4]} 16...
d4 {[%clk 0:01:07.3]} 17. Rh1 {[%clk 0:01:24.2]} 17... Nh2 {[%clk 0:00:56.8]}
18. Rxh2 {[%clk 0:01:21.5]} 18... Qg4+ {[%clk 0:00:57.4]} 19. Kf2 {[%clk
0:01:19]} 19... g6 {[%clk 0:00:53.9]} 20. Ne4 {[%clk 0:01:06.4]} 20... f5 {[%clk
0:00:50.8]} 21. Bc4+ {[%clk 0:00:45.9]} 21... Kg7 {[%clk 0:00:48.4]} 22. Bc3
{[%clk 0:00:32.8]} 22... fxe4 {[%clk 0:00:33.9]} 23. Bxd4+ {[%clk 0:00:32.6]}
23... Rf6 {[%clk 0:00:32.8]} 24. Rxh7+ {[%clk 0:00:27.7]} 24... Kxh7 {[%clk
0:00:32]} 25. Bxf6 {[%clk 0:00:28.6]} 25... g5 {[%clk 0:00:25.1]} 26. Rh1+
{[%clk 0:00:26.5]} 26... Kg6 {[%clk 0:00:23.9]} 27. Bxg5 {[%clk 0:00:26.2]}
27... Bf5 {[%clk 0:00:20.6]} 28. Rh6+ {[%clk 0:00:24.6]} 28... Kg7 {[%clk
0:00:18.8]} 29. Qc3+ {[%clk 0:00:24.9]} 1-0